Cogmind - Beta 13 @@@ ROGUE MODE // 2024.04.16 @ 00:42:38 Player: TheBermanGrit Result: Self-destructed Performance ------------- Evolutions (2) 1000 Regions Visited (4) 800 Robots Destroyed (24) 120 Value Destroyed (556) 556 Prototype IDs (1) 20 Alien Tech Used (0) 0 Bonus (0) 0 TOTAL SCORE: 2496 Bonus ------- None Cogmind --------- Core Integrity 550/550 Matter 59/300 Energy 87/140 System Corruption 0% Temperature Cool (0) Movement Hovering (42) Location -8/Materials Parts ------- > --- POWER (1) -------- Light Deuterium Engine > --- PROPULSION (3) --- Improved Airjet Improved Airjet Improved Airjet > --- UTILITY (5) ------ Weight Redist. System Reaction Control System Reaction Control System Reaction Control System Improved Light Armor Plating > --- WEAPON (2) ------- Gauss Cannon Mace > --- INVENTORY (5) ---- Light Deuterium Engine Xenon Bombardment Thruster Xenon Bombardment Thruster Xenon Bombardment Thruster Xenon Bombardment Thruster Peak State ------------ > --- POWER ------------ Light Deuterium Engine > --- PROPULSION ------- Improved Airjet Improved Airjet Improved Airjet > --- UTILITY ---------- Weight Redist. System Reaction Control System Reaction Control System Reaction Control System Improved Light Armor Plating > --- WEAPON ----------- Gauss Cannon Mace > --- INVENTORY -------- Light Deuterium Engine Xenon Bombardment Thruster Xenon Bombardment Thruster Xenon Bombardment Thruster Xenon Bombardment Thruster [Rating: 39] Favorites ----------- Power Ion Engine Engine Ion Engine Propulsion Light Treads Treads Light Treads Leg Carbon-fiber Leg Hover Unit Improved Airjet Utility Targeting Computer Device Heat Sink Storage Large Storage Unit Processor Targeting Computer Protection Light Armor Plating Weapon Mace Energy Gun Small Laser Energy Cannon Beam Cannon Ballistic Gun Shotgun Ballistic Cannon Gauss Cannon Impact Weapon Mace Build | -11 -10 -10 -9 -8 ------- Run | Yrd Mat Min Mat Mat Slots Evolved 4 | . . . 2 2 Power . | . . . . . Propulsion 1 | . . . . 1 Utility 3 | . . . 2 1 Weapon . | . . . . . Parts Attached 47 | 6 5 . 16 20 Power 4 | 1 . . 2 1 Engine 4 | 1 . . 2 1 Core . | . . . . . Reactor . | . . . . . Propulsion 14 | 2 . . 4 8 Treads 8 | 2 . . 4 2 Leg 3 | . . . . 3 Wheel . | . . . . . Hover 3 | . . . . 3 Flight . | . . . . . Utility 16 | 1 2 . 5 8 Device 5 | . . . 1 4 Storage 3 | 1 1 . 1 . Processor 3 | . 1 . 1 1 Hackware . | . . . . . Protection 5 | . . . 2 3 Artifact . | . . . . . Weapon 13 | 2 3 . 5 3 Energy Gun 1 | 1 . . . . Energy Cannon 1 | . . . 1 . Ballistic Gun 8 | 1 2 . 4 1 Ballistic Cannon 1 | . . . . 1 Launcher . | . . . . . Special Weapon . | . . . . . Impact Weapon 2 | . 1 . . 1 Slashing Weapon . | . . . . . Piercing Weapon . | . . . . . Special Melee Weapon . | . . . . . Unidentified Prototypes 1 | . . . . 1 Corrupted Parts 1 | . . . 1 . System Corruption 9 | . . . 9 . Parts Lost 1 | . . . 1 . Power . | . . . . . Propulsion 1 | . . . 1 . Utility . | . . . . . Weapon . | . . . . . Highest Loss Streak 1 | . . . 1 . To Critical Strikes . | . . . . . Average Slot Usage (%) 97 | . 91 100 97 98 Engine 11 | . 14 14 11 9 Treads 22 | . 28 28 20 17 Hover 1 | . . . . 6 Device 2 | . . . 4 1 Storage 11 | . 14 14 11 7 Processor 17 | . 6 14 22 19 Protection 6 | . . . 6 16 Ballistic Gun 11 | . 15 14 10 7 Impact Weapon 10 | . 8 14 11 9 Naked Turns . | . . . . . Heaviest Build 91 | 12 90 90 91 38 Greatest Support 60 | 40 40 40 43 60 Greatest Overweight (x) 3 | 1 2 2 2 3 Average Overweight (x) . | . . 2 . . Largest Inventory Capacity 25 | 8 25 25 25 15 Average Capacity 16 | 6 11 25 16 13 Most Carried 15 | 1 10 14 15 15 Average Carried 10 | . 4 11 12 10 Final Capacity 25 | 8 25 25 15 5 Final Carried 14 | 1 10 14 13 5 Class Distribution -------------------- 87% | Mutant 12% | Scavenger-Mutant Dominant Class ---------------- Mutant | -10/Materials Mutant | -10/Mines Mutant | -9/Materials Scavenger-Mutant | -8/Materials Resources | -11 -10 -10 -9 -8 ----------- Run | Yrd Mat Min Mat Mat Matter Collected 732 | 177 98 121 294 42 Remotely . | . . . . . Salvage Created 785 | . 98 118 482 87 Parts 44 | . 7 9 26 2 Haulers Intercepted 3 | . 1 . 1 1 Recyclers Shooed 2 | . . . 2 . Parts Field Recycled . | . . . . . Retrieved Matter . | . . . . . Parts Self-Destructed . | . . . . . Prevented . | . . . . . Kills | -11 -10 -10 -9 -8 ------- Run | Yrd Mat Min Mat Mat Combat Hostiles Destroyed 20 | . 3 5 9 3 Guns 18 | . 3 5 7 3 Classes Destroyed 6 | . 2 1 3 . Hauler 3 | . 1 . 1 1 Watcher 1 | . . . 1 . Swarmer 9 | . 3 3 . 3 Grunt 6 | . . 2 4 . Duelist 1 | . . . 1 . Sentry 4 | . . . 4 . Best Kill Streak 5 | . 3 5 4 2 Combat Bots Only 5 | . 2 5 3 2 Max Kills in Single Turn 1 | . 1 1 1 1 Gunslinging . | . . . . . Exploded . | . . . . . Melee . | . . . . . Uniques/NPCs Destroyed . | . . . . . Combat | -11 -10 -10 -9 -8 -------- Run | Yrd Mat Min Mat Mat Hostile Shots Fired 129 | . 21 27 71 10 Missed 38 | . 8 7 20 3 Damage Taken 1036 | . 100 193 688 55 Core 67 | . 8 8 51 . Absorbed by Shields . | . . . . . Regen/Repaired (Parts) 13 | . . . . 13 Core Remaining (%) 93 | 100 . 93 87 . Volleys Fired 68 | . 9 11 39 9 Largest 1 | . 1 1 1 1 Hottest 25 | . 23 23 23 25 Shots Fired 68 | . 9 11 39 9 Gun 68 | . 9 11 39 9 Cannon . | . . . . . Launcher . | . . . . . Special . | . . . . . Kinetic 68 | . 9 11 39 9 Thermal . | . . . . . Explosive . | . . . . . Electromagnetic . | . . . . . Robot Hit Streak 10 | . 5 10 9 8 Robot Miss Streak 3 | . 3 2 2 2 Penetration Max . | . . . . . Secondary Targets . | . . . . . Shots Hit Robots 74 | . 8 11 45 10 Core Hits 30 | . 5 8 13 4 Critical Kills . | . . . . . Critical Parts Destroyed 4 | . . . 4 . Critical Strikes 4 | . . . 4 . Destroy 1 | . . . 1 . Smash 3 | . . . 3 . Melee Attacks 21 | . . . 18 3 Impact 21 | . . . 18 3 Slashing . | . . . . . Piercing . | . . . . . Sneak Attacks 2 | . . . 1 1 Combat Hostiles . | . . . . . Follow-up Attacks . | . . . . . Damage Inflicted 1388 | . 124 154 837 273 Guns 938 | . 124 154 503 157 Cannons . | . . . . . Explosions . | . . . . . Melee 450 | . . . 334 116 Ramming . | . . . . . Kinetic 938 | . 124 154 503 157 Thermal . | . . . . . Explosive . | . . . . . Electromagnetic . | . . . . . Impact 450 | . . . 334 116 Slashing . | . . . . . Piercing . | . . . . . Highest Corruption 13 | . 1 1 13 . Average Corruption 7 | . 1 1 12 . Corruption Purged . | . . . . . Corruption Blocked . | . . . . . Effects 27 | . 2 3 22 . Message Errors 8 | . 1 1 6 . Matter Fused 9 | . . 2 7 . Heat Flow Errors 2 | . . . 2 . Energy Discharges 3 | . . . 3 . Parts Rejected 3 | . . . 3 . Data Loss (minor) 1 | . . . 1 . Data Loss (major) 1 | . 1 . . . Overload Shots . | . . . . . Overflow Damage 115 | . . . 55 60 Projectiles . | . . . . . Explosions . | . . . . . Melee 115 | . . . 55 60 Knockbacks 2 | . . . 2 . Impact 2 | . . . 2 . Kinetic . | . . . . . Secondary . | . . . . . Self-Inflicted Damage . | . . . . . Shots . | . . . . . Rammed . | . . . . . Targets Rammed . | . . . . . Kicked . | . . . . . Crushed . | . . . . . Highest Temperature 93 | . . . 93 . Average Temperature 42 | . . . 42 . Received Heat Transfer 312 | . . 42 270 . Siege Activations . | . . . . . Robots Corrupted . | . . . . . Combat Hostiles . | . . . . . Parts Fried 6 | . . . 4 2 Impact Corruptions 7 | . . . 5 2 Robots Melted . | . . . . . Combat Hostiles . | . . . . . Parts Melted . | . . . . . Heat Transferred . | . . . . . Parts Sabotaged . | . . . . . Parts Stolen . | . . . . . Parts Stripped . | . . . . . Power Chain Reactions . | . . . . . Alert | -11 -10 -10 -9 -8 ------- Run | Yrd Mat Min Mat Mat Peak Influence 292 | . 77 150 292 231 Initial 122 | . . 30 58 122 Average 100 | . 35 61 111 188 Maximum Alert Level 1 | . . . 1 1 Low Security (%) 81 | 100 100 100 85 37 Level 1 18 | . . . 14 62 Level 2 . | . . . . . Level 3 . | . . . . . Level 4 . | . . . . . Level 5 . | . . . . . High Security . | . . . . . Max Security . | . . . . . Squads Dispatched 2 | . 1 . 1 . Investigation 1 | . 1 . . . Extermination . | . . . . . Reinforcement 1 | . . . 1 . Assault . | . . . . . Garrison . | . . . . . Intercept . | . . . . . Searches Triggered . | . . . . . Construction Impeded . | . . . . . Haulers Reinforced . | . . . . . Active Scanning Responses . | . . . . . Cargo Convoy Interrupts . | . . . . . Stealth | -11 -10 -10 -9 -8 --------- Run | Yrd Mat Min Mat Mat Distress Signals 7 | . . . 5 2 Communications Jammed . | . . . . . Distress Signals . | . . . . . Times Spotted 34 | . 3 5 17 9 Peak Tracking Total 6 | . 2 3 5 6 Tactical Retreats 2 | . . . 1 1 Traps | -11 -10 -10 -9 -8 ------- Run | Yrd Mat Min Mat Mat Traps Triggered 4 | . 2 . 2 . Indirectly . | . . . . . Trap Hack Attempts . | . . . . . Triggered . | . . . . . Disarmed . | . . . . . Reprogrammed . | . . . . . Reused . | . . . . . Traps Extracted . | . . . . . Installed . | . . . . . Triggered . | . . . . . Machines | -11 -10 -10 -9 -8 ---------- Run | Yrd Mat Min Mat Mat Machines Disabled . | . . . . . Max in Single Turn . | . . . . . Machines Repaired . | . . . . . Machines Dismantled . | . . . . . Machines Sabotaged . | . . . . . Overloaded Fab Kills . | . . . . . Hacking | -11 -10 -10 -9 -8 --------- Run | Yrd Mat Min Mat Mat Machines Accessed 4 | . 2 . 1 1 Terminals 3 | . 2 . 1 . Fabricators . | . . . . . Repair Stations 1 | . . . . 1 Recycling Units . | . . . . . Scanalyzers . | . . . . . Garrison Access . | . . . . . Total Hacks 10 | . 5 . 3 2 Successful 4 | . 1 . 1 2 Failed 6 | . 4 . 2 . Catastrophic 2 | . . . 2 . Database Lockouts . | . . . . . Manual 2 | . . . 2 . Terminals 8 | . 5 . 3 . Fabricators . | . . . . . Repair Stations 2 | . . . . 2 Recycling Units . | . . . . . Scanalyzers . | . . . . . Garrison Access . | . . . . . Terminal Hacks 2 | . 1 . 1 . Emergency Access Points 1 | . . . 1 . Alert Level 1 | . 1 . . . Fabricator Hacks . | . . . . . Repair Station Hacks 2 | . . . . 2 Scan Component 1 | . . . . 1 Repair 1 | . . . . 1 Recycling Unit Hacks . | . . . . . Scanalyzer . | . . . . . Garrison Access Hacks . | . . . . . Unauthorized Hacks . | . . . . . Terminals . | . . . . . Fabricators . | . . . . . Repair Stations . | . . . . . Recycling Units . | . . . . . Scanalyzers . | . . . . . Garrison Access . | . . . . . Data Cores Recovered . | . . . . . Used . | . . . . . Hacking Detections 3 | . 2 . 1 . Full Trace Events . | . . . . . Feedback Events . | . . . . . Feedback Blocked . | . . . . . Robot Schematics Acquired . | . . . . . Robots Built . | . . . . . Authchips . | . . . . . Time . | . . . . . Total Robot Build Rating . | . . . . . Part Schematics Acquired . | . . . . . Parts Built . | . . . . . Authchips . | . . . . . Time . | . . . . . Total Part Build Rating . | . . . . . Parts Repaired 1 | . . . . 1 Time 36 | . . . . 36 Parts Recycled . | . . . . . Recycled Matter . | . . . . . Retrieved Matter . | . . . . . Retrieved Components . | . . . . . Parts Scanalyzed . | . . . . . Part Schematics Acquired . | . . . . . Parts Damaged . | . . . . . Bothacking | -11 -10 -10 -9 -8 ------------ Run | Yrd Mat Min Mat Mat Used RIF Installer . | . . . . . Robots Hacked . | . . . . . Non-combat . | . . . . . Combat . | . . . . . Robot Hacks Applied . | . . . . . Relay Couplers Released . | . . . . . Fabnet Peak Effective % . | . . . . . Robots Rewired . | . . . . . Allies Hacked . | . . . . . Hacks Repelled . | . . . . . Allies | -11 -10 -10 -9 -8 -------- Run | Yrd Mat Min Mat Mat Total Allies . | . . . . . Largest Group . | . . . . . Highest-Rated Group . | . . . . . Highest-Rated Ally . | . . . . . Total Orders . | . . . . . Ally Attacks . | . . . . . Total Damage . | . . . . . Kills . | . . . . . Allies Corrupted . | . . . . . Allies Melted . | . . . . . Intel | -11 -10 -10 -9 -8 ------- Run | Yrd Mat Min Mat Mat Robot Analysis Total . | . . . . . Derelict Logs Recovered . | . . . . . Drone Launches . | . . . . . Drone Recoveries . | . . . . . Exploration | -11 -10 -10 -9 -8 ------------- Run | Yrd Mat Min Mat Mat Turns Passed 1776 | 63 297 311 776 329 Spaces Moved 806 | 36 146 90 309 225 Core 4 | 4 . . . . Treads 682 | 32 146 90 309 105 Legs 17 | . . . . 17 Wheels . | . . . . . Hover 103 | . . . . 103 Flight . | . . . . . Fastest Speed 42 | 50 160 320 160 42 Average Speed 179 | 150 180 320 193 105 Slowest Speed 320 | 160 320 320 320 260 Overloaded Moves . | . . . . . Propulsion Burnouts . | . . . . . Robots Hopped . | . . . . . Cave-ins Triggered . | . . . . . Exploration Rate (%) 24 | 4 31 29 38 22 Regions Visited 4 Branch Regions 1 Pre-discovered Areas 1 | . . 1 . . Known Exits Taken . | . . . . . Unknown Exits Taken 4 | 1 1 1 1 . Scrap Searched 2 | . . 2 . . Spaces Dug 1 | . . . 1 . Terrain Destroyed 1 | . . . 1 . Melee 1 | . . . 1 . Projectile . | . . . . . AOE . | . . . . . Terrain Rammed . | . . . . . Walls Destroyed . | . . . . . Machines Disabled . | . . . . . Actions | -11 -10 -10 -9 -8 --------- Run | Yrd Mat Min Mat Mat Total 1044 | 42 171 104 417 310 Wait 23 | . . . 12 11 Move 802 | 35 145 89 308 225 Hop . | . . . . . Pick Up 36 | 1 9 4 11 11 Fast Attach 23 | 6 3 . 4 10 Attach 7 | . . . 2 5 Detach 4 | . . . . 4 Swap 17 | . 2 . 10 5 Drop 43 | . 3 . 13 27 Fire 68 | . 9 11 39 9 Melee 21 | . . . 18 3 Ram . | . . . . . Kick . | . . . . . Crush . | . . . . . Escape Stasis . | . . . . . Rewire . | . . . . . Trap . | . . . . . Miscellaneous . | . . . . . Route ------- -11/Scrapyard -10/Materials -10/Mines -9/Materials -8/Materials History --------- Turn | Location | Event 9 | -11/Scrapyard | Discovered new exit (range 15) 64 | -11/Scrapyard | Entered Materials 278 | -10/Materials | Discovered new exit (range 9) 321 | -10/Materials | Build established: Mutant 361 | -10/Materials | Entered Mines 540 | -10/Mines | Learned location of Storage (-9) 552 | -10/Mines | Discovered new exit (range 10) 672 | -10/Mines | Entered Materials 672 | -9/Materials | Evolved 2 slots: Utility x2 945 | -9/Materials | System corruption reached 10% 1440 | -9/Materials | Discovered new exit (range 6) 1448 | -9/Materials | Entered another Materials area 1448 | -8/Materials | Evolved 2 slots: Propulsion x1, Utility x1 1637 | -8/Materials | Repaired Corrupted Lgt. Treads 1777 | -8/Materials | Self-destructed Last Messages --------------- 01720_ Dropped Mining Laser. 01720_ Dropped Imp. Ion Engine. 01721_ Dropped Carbon-fiber Leg. 01722_ Dropped Lrg. Storage Unit. 01737_ Connecting with Repair Station... 01748_ Dropped Faulty Imp. Airjet. 01749_ Acquired Xenon Bombardment Thruster. 01749_ R-06 Scavenger collects Lgt. Treads. 01750_ Acquired Xenon Bombardment Thruster. 01752_ R-06 Scavenger collects Faulty Imp. Airjet. 01755_ Dropped Mace. 01755_ Acquired Xenon Bombardment Thruster. 01756_ R-06 Scavenger collects Beam Cannon. 01769_ Discarded Targeting Computer. 01770_ Acquired Reaction Control System. 01772_ Discarded Targeting Computer. 01772_ Acquired Reaction Control System. 01775_ Discarded Targeting Computer. 01775_ Acquired Reaction Control System. Map ----- +----------------------------------------------------+ | | | ?????????????????????????????????????????????????? | | ?????????????????????????????????????????????????? | | ?????????????????????????????????????????????????? | | ?????????????????????????????????????????????????? | | ?????????????????????????????????????????????????? | | ?????????????????????????????????????????????????? | | ?????????????????????????????????????????????????? | | ?????????????????????????????????????????????????? | | ?????????????????????????????????????????????????? | | ?????????????????????????????????????????????????? | | ?????????????????????????????????????????????????? | | ??????????????????????????????##?????????????????? | | ?????????????????????????????? #?????????????????? | | ????????????????????????????? #?????????????????? | | ????????????????????????????? #?????????????????? | | ???????????????????????????? #?????????????????? | | ???????????????????????????? ??????????????????? | | ???????????????????????????? #??????????????????? | | ????????????????????#####?? #??????????????????? | | ?????????????#??????#"""#??r #??????????????????? | | ??????????+### ######"T"### +??????????????????? | | ?????????? a #??????????????????? | | ?????????# #??????????????????? | | ????????????? !!! #??????????????????? | | ???????????????????# @! #??????????????????? | | ???????????????????# !! #??????????????????? | | ???????????????????# #??????????????????? | | ???????????????????+ t #######????????????? | | ???????????????????# ??????????? | | ???????????????????# ??????????? | | ???????????????????# ??????????? | | ???????????????????# ??????????? | | ?????????#########?# """" """" ???????????? | | ?????????# ?# """" """" ???????????? | | ?????????# # """" """" ????????????? | | ?????????# # ????????????? | | ?????????# + ????????????? | | ?????????# # ????????????? | | ?????????# ## #+###########??????????????? | | ?????????# ??# #??????????????????????????? | | ?????????# ??# #??????????????????????????? | | ?????????########???# #??????????????????????????? | | ????????????????????# #??????????????????????????? | | ????????????????????# #??????????????????????????? | | ??????????????????### #?######???????????????????? | | ??????????????????# #? #???????????????????? | | ??????????????????# # ! #???????????????????? | | ??????????????????# # """#???????????????????? | | ??????????????????# + """#???????????????????? | +----------------------------------------------------+ Best States ------------- Heat Dissipation 38 Energy Generation 14 Energy Capacity 265 Matter Stores 300 Matter Capacity 300 Sight Range 16 Terrain Scan Density 10 Additional Mass Support 6 Armor Coverage 300 Evasion (%) 56 Targeting Accuracy 15 Recoil Reduction 3 Item Schematics ----------------- None Robot Schematics ------------------ None Fabricated ------------ Nothing Alien Tech Used ----------------- None Achievements -------------- Part-time Mechanic Challenges ------------ None Game ------ Seed ReactionComponentFragment Manual? 0 Play Time 00:26:29 Cumulative 12.3 hours Start 2024.04.16 @ 00:15:16 End 2024.04.16 @ 00:42:38 Sessions 1 Manual Loads 0 Difficulty Rogue Special Mode None Game No. 22 Rogue 22 Adventurer 0 Explorer 0 Win Type - Total 0 Types 0/0/0/0/0/0/0/0/0 Lore% 17 Gallery% 17 Achievement% 13 Wizard Run 0 Options --------- Layout 1 ASCII 0 Keyboard 0 Movement Arrows Keybinds 0 Fullscreen 1 Font 24/Smallcaps Map View 50x35 Zoom Use 0% Tactical HUD 1 Map Filters NONE Filters NONE Steam 1 RUN: ab161f7c-830c-478b-843c-3396ab7543f7